fUSD/lending_fUSD_20260509
["ID","MTS","AMOUNT","RATE_DAILY","PERIOD"]
[421899733,1778311832000,-500.0,0.00014898,2]
[421899739,1778311832000,-500.0,0.00014898,2]
[421899737,1778311832000,-500.0,0.00014898,2]
[421899720,1778311832000,-500.0,0.00014898,2]
[421899713,1778311832000,-1109.864,0.00014897,2]
[421899701,1778311832000,-300.0,0.00014798,2]
[421899710,1778311832000,-214.73073128,0.00014843,2]
[421899696,1778311832000,-143.09354164,0.00014322,2]
[421899697,1778311832000,-229.93,0.00014447,2]
[421899698,1778311832000,-150.0,0.0001466,2]
[421899700,1778311832000,-150.0,0.0001477,2]
[421899699,1778311832000,-152.2680635,0.00014699,2]
[421899704,1778311832000,-3835.40093293,0.00014799,2]
[421899743,1778311832000,-500.0,0.00014898,2]
[421899703,1778311832000,-2497.33627527,0.00014799,2]
[421899706,1778311832000,-733.65479876,0.000148,2]
[421899707,1778311832000,-208.0536425,0.00014804,2]
[421899705,1778311832000,-4229.54646373,0.00014799,2]
[421899702,1778311832000,-1200.0,0.00014798,2]
[421899708,1778311832000,-229.93,0.00014808,2]
[421899709,1778311832000,-150.0,0.00014834,2]
[421899711,1778311832000,-1831.72,0.00014863,2]
[421899712,1778311832000,-192.96747303,0.0001489,2]
[421899735,1778311832000,-250.75373206,0.00014898,2]
[421899787,1778311832000,-500.0,0.00014898,2]
[421899745,1778311832000,-500.0,0.00014898,2]
[421899779,1778311832000,-500.0,0.00014898,2]
[421899781,1778311832000,-500.0,0.00014898,2]
[421899782,1778311832000,-422.88900491,0.00014898,2]
[421899785,1778311832000,-500.0,0.00014898,2]
[421899784,1778311832000,-500.0,0.00014898,2]
[421899783,1778311832000,-150.0,0.00014898,2]
[421899786,1778311832000,-500.0,0.00014898,2]
[421899789,1778311832000,-164032.79348278,0.00014899,2]
[421899788,1778311832000,-530.11512474,0.00014898,2]
[421899790,1778311832000,-6141.40615981,0.00014899,2]
[421899791,1778311832000,-723.30545203,0.00014899,2]
[421899792,1778311832000,-456.00465215,0.00014899,2]
[421899794,1778311832000,-3818.60026185,0.00014899,2]
[421899741,1778311832000,-500.0,0.00014898,2]
[421899795,1778311832000,-737.89658391,0.00014899,2]
[421899780,1778311832000,-500.0,0.00014898,2]
[421899778,1778311832000,-500.0,0.00014898,2]
[421899793,1778311832000,-895.41,0.00014899,2]
[421899774,1778311832000,-499.99999999,0.00014898,2]
[421899749,1778311832000,-500.0,0.00014898,2]
[421899747,1778311832000,-500.0,0.00014898,2]
[421899748,1778311832000,-500.0,0.00014898,2]
[421899766,1778311832000,-500.0,0.00014898,2]
[421899761,1778311832000,-500.0,0.00014898,2]
[421899752,1778311832000,-500.0,0.00014898,2]
[421899765,1778311832000,-500.0,0.00014898,2]
[421899763,1778311832000,-500.0,0.00014898,2]
[421899755,1778311832000,-500.0,0.00014898,2]
[421899757,1778311832000,-500.0,0.00014898,2]
[421899759,1778311832000,-500.0,0.00014898,2]
[421899770,1778311832000,-500.0,0.00014898,2]
[421899768,1778311832000,-500.0,0.00014898,2]
[421899773,1778311832000,-617.63241824,0.00014898,2]
[421899772,1778311832000,-500.0,0.00014898,2]
[421899750,1778311832000,-500.0,0.00014898,2]
[421899777,1778311832000,-500.0,0.00014898,2]
[421899796,1778311833000,-901.23418243,0.00014899,2]
[421899797,1778311833000,-1237.08734021,0.00014899,2]
[421899809,1778311838000,-27101.81642507,0.00014899,2]
[421899810,1778311838000,-380.52932165,0.00014899,2]
[421899808,1778311838000,-139610.40665965,0.00014899,2]
[421899807,1778311838000,-365643.06402697,0.00014899,2]
[421899816,1778311840000,-1738.02322196,0.00014799,2]
[421899818,1778311840000,-3302.40057009,0.00014799,2]
[421899819,1778311840000,-564.11572434,0.00014799,2]
[421899817,1778311840000,-1029.67326749,0.00014799,2]
[421899829,1778311841000,-4735.55327946,0.00014799,2]
[421899828,1778311841000,-1208.41684316,0.00014799,2]
[421899826,1778311841000,-8441.88632382,0.00014799,2]
[421899827,1778311841000,-504.38,0.00014799,2]
[421899825,1778311841000,-6087.10756133,0.00014799,2]
[421899824,1778311841000,-6061.57519651,0.00014799,2]
[421899823,1778311841000,-710.75,0.00014799,2]
[421899822,1778311841000,-3175.73939199,0.00014799,2]
[421899821,1778311841000,-446.53124102,0.00014799,2]
[421899820,1778311841000,-1127.06611192,0.00014799,2]
[421899851,1778311843000,-4570.34405577,0.00014799,2]
[421899853,1778311843000,-28479.06886707,0.00014799,2]
[421899854,1778311843000,-416.0,0.00014799,2]
[421899856,1778311843000,-7144.81151082,0.00014799,2]
[421899855,1778311843000,-7357.8675482,0.00014799,2]
[421899857,1778311843000,-10395.62115333,0.00014799,2]
[421899852,1778311843000,-343.07272125,0.00014799,2]
[421899864,1778311846000,-392.00860854,0.00014799,2]
[421899863,1778311846000,-2935.83537629,0.00014799,2]
[421899862,1778311846000,-479.21250253,0.00014799,2]
[421899861,1778311846000,-449.33884543,0.00014799,2]
[421899860,1778311846000,-885.94882332,0.00014799,2]
[421899868,1778311847000,-508426.44562661,0.00014799,2]
[421899870,1778311847000,-379.86433002,0.00014799,2]
[421899869,1778311847000,-381.13930652,0.00014799,2]
[421899872,1778311997000,181.44,0.00026343,120]
[421899875,1778312436000,250.0,0.00014,2]
[421899879,1778312509000,-182.72,0.00024336,30]
[421899880,1778312509000,-183.61,0.00025158,30]
[421899878,1778312509000,-183.61,0.00024285,30]
[421899877,1778312509000,-3727.18978617,0.000237,30]
[421899876,1778312509000,-49208.87083721,0.000209,30]
[421899891,1778312510000,-3091.13,0.00026674,30]
[421899890,1778312510000,-3098.37,0.00026647,30]
[421899889,1778312510000,-182.72,0.00026064,30]
[421899888,1778312510000,-183.61,0.00026031,30]
[421899887,1778312510000,-3091.13,0.00025976,30]
[421899884,1778312510000,-3098.37,0.00025237,30]
[421899886,1778312510000,-3098.37,0.00025942,30]
[421899892,1778312510000,-183.61,0.00026904,30]
[421899882,1778312510000,-275.42,0.00025234,30]
[421899883,1778312510000,-274.08,0.00025234,30]
[421899881,1778312510000,-182.72,0.000252,30]
[421899885,1778312510000,-3091.13,0.00025279,30]
[421899894,1778312510000,-3098.37,0.00027352,30]
[421899901,1778312510000,-182.72,0.00028656,30]
[421899895,1778312510000,-3091.13,0.00027372,30]
[421899907,1778312510000,-159.0,0.00030983,30]
[421899906,1778312510000,-199.0,0.00030983,30]
[421899904,1778312510000,-500.0,0.00030137,120]
[421899905,1778312510000,-500.0,0.00030959,120]
[421899903,1778312510000,-3091.13,0.00028767,30]
[421899893,1778312510000,-182.72,0.00026928,30]
[421899900,1778312510000,-183.61,0.0002865,30]
[421899899,1778312510000,-3091.13,0.0002807,30]
[421899898,1778312510000,-3098.37,0.00028057,30]
[421899897,1778312510000,-182.72,0.00027792,30]
[421899896,1778312510000,-183.61,0.00027777,30]
[421899902,1778312510000,-3098.37,0.00028762,30]
[421899918,1778312511000,-159.0,0.00031983,30]
[421899917,1778312511000,-199.0,0.00031983,30]
[421899916,1778312511000,-500.0,0.00031781,120]
[421899915,1778312511000,-1099.59,0.00031,30]
[421899914,1778312511000,-461.0,0.00030983,30]
[421899911,1778312511000,-240.0,0.00030983,30]
[421899912,1778312511000,-154.0,0.00030983,30]
[421899909,1778312511000,-243.0,0.00030983,30]
[421899910,1778312511000,-1515.0,0.00030983,30]
[421899908,1778312511000,-151.0,0.00030983,30]
[421899919,1778312511000,-159.11806041,0.00031983,30]
[421899913,1778312511000,-224.0,0.00030983,30]
[421899920,1778312511000,-243.0,0.00031983,30]
[421899921,1778312511000,-1515.0,0.00031983,30]
[421899922,1778312511000,-240.0,0.00031983,30]
[421899934,1778312511000,-461.0,0.00032983,30]
[421899932,1778312511000,-163.21476095,0.00032983,30]
[421899933,1778312511000,-224.0,0.00032983,30]
[421899931,1778312511000,-240.0,0.00032983,30]
[421899930,1778312511000,-1515.0,0.00032983,30]
[421899929,1778312511000,-243.0,0.00032983,30]
[421899935,1778312511000,-185.38213848,0.00033,120]
[421899927,1778312511000,-199.0,0.00032983,30]
[421899926,1778312511000,-185.38213848,0.00032,120]
[421899925,1778312511000,-461.0,0.00031983,30]
[421899924,1778312511000,-224.0,0.00031983,30]
[421899923,1778312511000,-154.0,0.00031983,30]
[421899928,1778312511000,-159.0,0.00032983,30]
[421899947,1778312512000,-2777.63,0.000347,30]
[421899945,1778312512000,-224.0,0.00033983,30]
[421899944,1778312512000,-240.0,0.00033983,30]
[421899943,1778312512000,-1515.0,0.00033983,30]
[421899941,1778312512000,-159.0,0.00033983,30]
[421899938,1778312512000,-2777.63,0.000336,30]
[421899940,1778312512000,-199.0,0.00033983,30]
[421899939,1778312512000,-185.38213848,0.000339,120]
[421899937,1778312512000,-23809.52193333,0.000333,30]
[421899936,1778312512000,-163.0,0.00033226,30]
[421899946,1778312512000,-461.0,0.00033983,30]
[421899942,1778312512000,-243.0,0.00033983,30]
[421899948,1778312512000,-199.0,0.00034983,30]
[421899950,1778312512000,-243.0,0.00034983,30]
[421899963,1778312512000,-760.93406,0.0003576,70]
[421899964,1778312512000,-760.93406,0.0003576,70]
[421899961,1778312512000,-760.93406,0.0003576,70]
[421899962,1778312512000,-760.93406,0.0003576,70]
[421899960,1778312512000,-576.06,0.00035662,30]
[421899959,1778312512000,-150.935,0.00035616,60]
[421899958,1778312512000,-760.93406,0.0003556,68]
[421899949,1778312512000,-159.0,0.00034983,30]
[421899955,1778312512000,-3436.72,0.00035,30]
[421899956,1778312512000,-185.38213848,0.00035,120]
[421899954,1778312512000,-461.0,0.00034983,30]
[421899952,1778312512000,-240.0,0.00034983,30]
[421899953,1778312512000,-224.0,0.00034983,30]
[421899951,1778312512000,-1515.0,0.00034983,30]
[421899957,1778312512000,-5367.87855,0.00035174,30]
[421899975,1778312513000,-1798.80895522,0.00036152,30]
[421899974,1778312513000,-1324.826417,0.00036023,30]
[421899972,1778312513000,-461.0,0.00035983,30]
[421899973,1778312513000,-185.38213848,0.00036,120]
[421899971,1778312513000,-224.0,0.00035983,30]
[421899967,1778312513000,-159.0,0.00035983,30]
[421899970,1778312513000,-240.0,0.00035983,30]
[421899968,1778312513000,-243.0,0.00035983,30]
[421899966,1778312513000,-199.0,0.00035983,30]
[421899965,1778312513000,-760.93407,0.0003576,70]
[421899976,1778312513000,-634.0,0.00036153,30]
[421899969,1778312513000,-1515.0,0.00035983,30]
[421899977,1778312513000,-500.0,0.00036197,33]
[421899981,1778312513000,-243.0,0.00036983,30]
[421899978,1778312513000,-1734.62772924,0.00036199,30]
[421899990,1778312513000,-1444.0,0.00037753,120]
[421899988,1778312513000,-150.935,0.00037443,60]
[421899989,1778312513000,-234.80624515,0.00037726,30]
[421899979,1778312513000,-199.0,0.00036983,30]
[421899985,1778312513000,-461.0,0.00036983,30]
[421899987,1778312513000,-500.0,0.00037283,39]
[421899986,1778312513000,-1672.7364795,0.00037023,30]
[421899983,1778312513000,-240.0,0.00036983,30]
[421899982,1778312513000,-1515.0,0.00036983,30]
[421899980,1778312513000,-159.0,0.00036983,30]
[421899984,1778312513000,-224.0,0.00036983,30]
[421899997,1778312514000,-2162.0,0.00038329,120]
[421900003,1778312514000,-2185.5,0.00038329,120]
[421900002,1778312514000,-2304.5,0.00038329,120]
[421900001,1778312514000,-2304.5,0.00038329,120]
[421900000,1778312514000,-1578.5,0.00038329,120]
[421899999,1778312514000,-1578.5,0.00038329,120]
[421900005,1778312514000,-887.892,0.00038377,51]
[421899996,1778312514000,-1383.0,0.00038329,120]
[421899994,1778312514000,-2028.5,0.00038329,120]
[421899995,1778312514000,-1383.0,0.00038329,120]
[421899993,1778312514000,-2028.5,0.00038329,120]
[421899991,1778312514000,-1613.0535,0.00037972,30]
[421899992,1778312514000,-634.0,0.00038125,30]
[421899998,1778312514000,-2162.0,0.00038329,120]
[421900004,1778312514000,-2185.5,0.00038329,120]
[421900014,1778312514000,-1888.502246,0.00039117,30]
[421900007,1778312514000,-2115.56,0.00039,120]
[421900019,1778312514000,-3339299.6552,0.00039118,30]
[421900020,1778312514000,-151.0,0.00039127,30]
[421900018,1778312514000,-151.0,0.00039117,30]
[421900017,1778312514000,-1888.502246,0.00039117,30]
[421900015,1778312514000,-1888.502246,0.00039117,30]
[421900016,1778312514000,-1888.502246,0.00039117,30]
[421900006,1778312514000,-500.0,0.00038402,45]
[421900012,1778312514000,-561.814967,0.00039117,30]
[421900011,1778312514000,-561.814967,0.00039117,30]
[421900013,1778312514000,-561.814967,0.00039117,30]
[421900010,1778312514000,-561.814967,0.00039117,30]
[421900008,1778312514000,-150.0,0.00039105,120]
[421900009,1778312514000,-204.47170256,0.00039117,120]
[421900021,1778312514000,-151.0,0.00039127,30]
[421900036,1778312515000,-188.7381276,0.0004,69]
[421900034,1778312515000,-1150.0,0.0004,30]
[421900035,1778312515000,-207574.80998488,0.0004,120]
[421900033,1778312515000,-2777.63,0.0004,30]
[421900032,1778312515000,-162.0,0.00039871,90]
[421900031,1778312515000,-1637.62689876,0.000398,30]
[421900030,1778312515000,-1637.62689876,0.000398,30]
[421900029,1778312515000,-1637.62689878,0.000398,30]
[421900028,1778312515000,-500.0,0.00039554,52]
[421900026,1778312515000,-270.8024232,0.00039235,120]
[421900024,1778312515000,-151.0,0.00039127,30]
[421900025,1778312515000,-151.0,0.00039127,30]
[421900037,1778312515000,-1815.298,0.000401,120]
[421900022,1778312515000,-151.0,0.00039127,30]
[421900027,1778312515000,-150.93,0.00039269,60]
[421900038,1778312515000,-5367.87855,0.00040319,30]
[421900023,1778312515000,-151.0,0.00039127,30]
[421900040,1778312515000,-50000.0,0.00040575,60]
[421900039,1778312515000,-987428.6893,0.00040403,30]
[421900054,1778312515000,-3771.932519,0.00041,30]
[421900053,1778312515000,-1015.29,0.00041,120]
[421900051,1778312515000,-151.0,0.000408,30]
[421900052,1778312515000,-16385.7729,0.00040838,30]
[421900048,1778312515000,-1888.502246,0.000408,30]
[421900050,1778312515000,-1888.502246,0.000408,30]
[421900055,1778312515000,-1150.0,0.00041,30]
[421900047,1778312515000,-1888.502246,0.000408,30]
[421900046,1778312515000,-10169.42931769,0.000408,60]
[421900044,1778312515000,-259.7,0.0004075,120]
[421900045,1778312515000,-359232.47316632,0.000408,120]
[421900041,1778312515000,-37861.72,0.00040575,60]
[421900042,1778312515000,-500.0,0.0004074,58]
[421900043,1778312515000,-214.4,0.0004075,120]
[421900049,1778312515000,-1888.502246,0.000408,30]
[421900069,1778312516000,-202.01,0.000411,120]
[421900068,1778312516000,-161.09,0.000411,120]
[421900067,1778312516000,-161.09751988,0.000411,120]
[421900066,1778312516000,-199.0,0.000411,120]
[421900065,1778312516000,-150.93,0.00041096,120]
[421900064,1778312516000,-150.93,0.00041096,60]
[421900059,1778312516000,-150.0,0.00041096,30]
[421900063,1778312516000,-1561.0,0.00041096,120]
[421900061,1778312516000,-150.0,0.00041096,30]
[421900060,1778312516000,-171.0,0.00041096,30]
[421900058,1778312516000,-1143.1,0.00041041,120]
[421900057,1778312516000,-3647.13411899,0.00041,30]
[421900056,1778312516000,-42693.64837437,0.00041,30]
[421900062,1778312516000,-204.0,0.00041096,30]
[421900070,1778312516000,-168.28,0.000411,120]
[421900073,1778312516000,-516.23,0.00041158,120]
[421900072,1778312516000,-1300.32,0.00041136,120]
[421900071,1778312516000,-1130.95,0.000411,120]
[421900085,1778312516000,-150.6,0.00041184,120]
[421900084,1778312516000,-900.0,0.00041177,120]
[421900083,1778312516000,-600.0,0.00041177,120]
[421900082,1778312516000,-5000.0,0.00041165,30]
[421900080,1778312516000,-5000.0,0.00041165,30]
[421900086,1778312516000,-2500.0,0.000412,120]
[421900079,1778312516000,-5000.0,0.00041165,30]
[421900077,1778312516000,-5000.0,0.00041165,30]
[421900078,1778312516000,-5000.0,0.00041165,30]
[421900076,1778312516000,-5000.0,0.00041165,30]
[421900074,1778312516000,-715.53,0.00041158,120]
[421900075,1778312516000,-784.61,0.00041158,120]
[421900081,1778312516000,-5000.0,0.00041165,30]
[421900097,1778312517000,-1300.44707576,0.00041236,120]
[421900098,1778312517000,-264.91,0.0004125,120]
[421900096,1778312517000,-561.814967,0.00041234,120]
[421900094,1778312517000,-561.814967,0.00041234,120]
[421900095,1778312517000,-561.814967,0.00041234,120]
[421900090,1778312517000,-2500.0,0.000412,120]
[421900093,1778312517000,-561.814967,0.00041234,120]
[421900099,1778312517000,-150.6,0.00041284,120]
[421900089,1778312517000,-2500.0,0.000412,120]
[421900088,1778312517000,-153.0,0.000412,120]
[421900087,1778312517000,-1000.0,0.000412,30]
[421900092,1778312517000,-300000.0,0.00041234,120]
[421900101,1778312517000,-961.0,0.000413,120]
[421900091,1778312517000,-206.71,0.000412,120]
[421900102,1778312517000,-5366.48380822,0.00041306,30]
[421900114,1778312517000,-150.0,0.00041493,60]
[421900112,1778312517000,-150.0,0.00041493,60]
[421900113,1778312517000,-150.0,0.00041493,60]
[421900111,1778312517000,-150.0,0.00041493,60]
[421900109,1778312517000,-150.0,0.00041493,60]
[421900110,1778312517000,-150.0,0.00041493,60]
[421900100,1778312517000,-1000.0,0.000413,120]
[421900106,1778312517000,-150.6,0.00041484,120]
[421900107,1778312517000,-150.0,0.00041493,60]
[421900105,1778312517000,-14940.0,0.0004141,120]
[421900104,1778312517000,-150.6,0.00041384,120]
[421900103,1778312517000,-939.28,0.00041374,120]
[421900108,1778312517000,-150.0,0.00041493,60]
[421900128,1778312518000,-150.0,0.00041493,60]
[421900126,1778312518000,-150.0,0.00041493,60]
[421900125,1778312518000,-150.0,0.00041493,60]
[421900123,1778312518000,-150.0,0.00041493,60]
[421900121,1778312518000,-150.0,0.00041493,60]
[421900119,1778312518000,-150.0,0.00041493,60]
[421900120,1778312518000,-150.0,0.00041493,60]
[421900127,1778312518000,-150.0,0.00041493,60]
[421900118,1778312518000,-150.0,0.00041493,60]
[421900116,1778312518000,-150.0,0.00041493,60]
[421900115,1778312518000,-150.0,0.00041493,60]
[421900117,1778312518000,-150.0,0.00041493,60]
[421900122,1778312518000,-150.0,0.00041493,60]
[421900129,1778312518000,-150.0,0.00041493,60]
[421900124,1778312518000,-150.0,0.00041493,60]
[421900130,1778312518000,-150.0,0.00041493,60]
[421900131,1778312518000,-195.0,0.00041493,60]
[421900143,1778312518000,-150.0,0.00041555,120]
[421900141,1778312518000,-300.0,0.00041541,120]
[421900142,1778312518000,-300.0,0.00041541,120]
[421900140,1778312518000,-500.0,0.00041541,120]
[421900138,1778312518000,-265.8,0.000415,120]
[421900144,1778312518000,-150.0,0.00041558,120]
[421900137,1778312518000,-2500.0,0.000415,120]
[421900135,1778312518000,-153.73202638,0.000415,120]
[421900136,1778312518000,-1000.0,0.000415,120]
[421900134,1778312518000,-182.75145513,0.000415,120]
[421900132,1778312518000,-243.58,0.00041498,120]
[421900133,1778312518000,-8876.92677478,0.000415,120]
[421900139,1778312518000,-50001.999999,0.000415,60]
[421900157,1778312519000,-1143.1,0.00041694,120]
[421900155,1778312519000,-10164.62268012,0.00041644,120]
[421900154,1778312519000,-151.0,0.00041644,120]
[421900153,1778312519000,-151.0,0.00041644,120]
[421900152,1778312519000,-151.0,0.00041644,120]
[421900148,1778312519000,-300.0,0.00041641,120]
[421900150,1778312519000,-250.01,0.00041644,110]
[421900149,1778312519000,-1561.0,0.00041644,120]
[421900147,1778312519000,-3325.80299827,0.000416,120]
[421900146,1778312519000,-150.6,0.00041584,120]
[421900145,1778312519000,-221.75428218,0.0004158,120]
[421900151,1778312519000,-915.09,0.00041644,30]
[421900156,1778312519000,-150.6,0.00041684,120]
[421900158,1778312519000,-199.0,0.000417,120]
[421900161,1778312519000,-151.0,0.000417,120]
[421900159,1778312519000,-10232.0,0.000417,117]
[421900173,1778312519000,-191.1919684,0.000418,120]
[421900172,1778312519000,-254.31,0.000418,120]
[421900171,1778312519000,-185.77957203,0.000418,120]
[421900170,1778312519000,-230.9,0.000418,31]
[421900168,1778312519000,-1810.68876565,0.0004179,120]
[421900169,1778312519000,-15736.8531823,0.000418,120]
[421900160,1778312519000,-151.0,0.000417,120]
[421900167,1778312519000,-150.6,0.00041784,120]
[421900165,1778312519000,-270.2,0.0004175,120]
[421900162,1778312519000,-151.0,0.000417,120]
[421900163,1778312519000,-600.0,0.00041725,120]
[421900164,1778312519000,-900.0,0.00041725,120]
[421900166,1778312519000,-46114.75720686,0.0004177,90]
[421900186,1778312520000,-160.0,0.000419,70]
[421900183,1778312520000,-1448.55608974,0.000419,30]
[421900181,1778312520000,-150.6,0.00041884,120]
[421900180,1778312520000,-627.7409385,0.0004188,120]
[421900176,1778312520000,-166.0,0.000418,120]
[421900178,1778312520000,-186.59871831,0.00041864,120]
[421900185,1778312520000,-466.1124216,0.000419,30]
[421900177,1778312520000,-252.19323157,0.000418,30]
[421900175,1778312520000,-1000.0,0.000418,120]
[421900174,1778312520000,-185.12595071,0.000418,120]
[421900179,1778312520000,-1302.33824975,0.00041877,120]
[421900184,1778312520000,-5000.0,0.000419,120]
[421900182,1778312520000,-268.93394638,0.00041889,120]
[421900187,1778312520000,-14194.0,0.000419,120]
[421900199,1778312520000,-494.81764384,0.00041955,120]
[421900198,1778312520000,-5496.33,0.00041949,30]
[421900197,1778312520000,-155.26736171,0.00041918,120]
[421900195,1778312520000,-150.0,0.00041918,120]
[421900196,1778312520000,-150.0,0.00041918,120]
[421900188,1778312520000,-33605.51858827,0.000419,120]
[421900192,1778312520000,-150.0,0.00041918,120]
[421900193,1778312520000,-150.0,0.00041918,120]
[421900191,1778312520000,-250.0,0.00041901,120]
[421900189,1778312520000,-215.80598678,0.000419,120]
[421900190,1778312520000,-215.80598677,0.000419,120]
[421900194,1778312520000,-150.0,0.00041918,120]
[421900212,1778312521000,-1500.0,0.00041957,120]
[421900208,1778312521000,-1500.0,0.00041957,120]
[421900210,1778312521000,-1500.0,0.00041957,120]
[421900209,1778312521000,-1500.0,0.00041957,120]
[421900206,1778312521000,-1500.0,0.00041957,120]
[421900204,1778312521000,-1500.0,0.00041957,120]
[421900205,1778312521000,-1500.0,0.00041957,120]
[421900203,1778312521000,-389.08656323,0.00041957,120]
[421900202,1778312521000,-31952.39582644,0.00041955,30]
[421900201,1778312521000,-31952.39582644,0.00041955,30]
[421900211,1778312521000,-1500.0,0.00041957,120]
[421900207,1778312521000,-1500.0,0.00041957,120]
[421900200,1778312521000,-1825.72542824,0.00041955,120]
[421900214,1778312521000,-1500.0,0.00041957,120]
[421900215,1778312521000,-1500.0,0.00041957,120]
[421900225,1778312521000,-1500.0,0.00041957,120]
[421900226,1778312521000,-1500.0,0.00041957,120]
[421900224,1778312521000,-1500.0,0.00041957,120]
[421900223,1778312521000,-1500.0,0.00041957,120]
[421900222,1778312521000,-1500.0,0.00041957,120]
[421900213,1778312521000,-1500.0,0.00041957,120]
[421900219,1778312521000,-1500.0,0.00041957,120]
[421900220,1778312521000,-1500.0,0.00041957,120]
[421900218,1778312521000,-1500.0,0.00041957,120]
[421900217,1778312521000,-1500.0,0.00041957,120]
[421900216,1778312521000,-1500.0,0.00041957,120]
[421900221,1778312521000,-1500.0,0.00041957,120]
[421900236,1778312522000,-1500.0,0.00041957,120]
[421900237,1778312522000,-1500.0,0.00041957,120]
[421900234,1778312522000,-1500.0,0.00041957,120]
[421900235,1778312522000,-1500.0,0.00041957,120]
[421900233,1778312522000,-1500.0,0.00041957,120]
[421900230,1778312522000,-1500.0,0.00041957,120]
[421900232,1778312522000,-1500.0,0.00041957,120]
[421900228,1778312522000,-1500.0,0.00041957,120]
[421900229,1778312522000,-1500.0,0.00041957,120]
[421900238,1778312522000,-1500.0,0.00041957,120]
[421900231,1778312522000,-1500.0,0.00041957,120]
[421900227,1778312522000,-1500.0,0.00041957,120]
[421900239,1778312522000,-1500.0,0.00041957,120]
[421900242,1778312522000,-1500.0,0.00041957,120]
[421900241,1778312522000,-1500.0,0.00041957,120]
[421900253,1778312522000,-1500.0,0.00041957,120]
[421900252,1778312522000,-1500.0,0.00041957,120]
[421900251,1778312522000,-1500.0,0.00041957,120]
[421900250,1778312522000,-1500.0,0.00041957,120]
[421900248,1778312522000,-1500.0,0.00041957,120]
[421900249,1778312522000,-1500.0,0.00041957,120]
[421900247,1778312522000,-1500.0,0.00041957,120]
[421900245,1778312522000,-1500.0,0.00041957,120]
[421900243,1778312522000,-1500.0,0.00041957,120]
[421900244,1778312522000,-1500.0,0.00041957,120]
[421900240,1778312522000,-1500.0,0.00041957,120]
[421900246,1778312522000,-1500.0,0.00041957,120]
[421900261,1778312523000,-1500.0,0.00041957,120]
[421900264,1778312523000,-1500.0,0.00041957,120]
[421900265,1778312523000,-1500.0,0.00041957,120]
[421900262,1778312523000,-1500.0,0.00041957,120]
[421900263,1778312523000,-1500.0,0.00041957,120]
[421900254,1778312523000,-1500.0,0.00041957,120]
[421900260,1778312523000,-1500.0,0.00041957,120]
[421900259,1778312523000,-1500.0,0.00041957,120]
[421900257,1778312523000,-1500.0,0.00041957,120]
[421900255,1778312523000,-1500.0,0.00041957,120]
[421900256,1778312523000,-1500.0,0.00041957,120]
[421900258,1778312523000,-1500.0,0.00041957,120]
[421900268,1778312523000,-1500.0,0.00041957,120]
[421900266,1778312523000,-1500.0,0.00041957,120]
[421900269,1778312523000,-1500.0,0.00041957,120]
[421900282,1778312523000,-1500.0,0.00041957,120]
[421900279,1778312523000,-1500.0,0.00041957,120]
[421900280,1778312523000,-1500.0,0.00041957,120]
[421900281,1778312523000,-1500.0,0.00041957,120]
[421900278,1778312523000,-1500.0,0.00041957,120]
[421900276,1778312523000,-1500.0,0.00041957,120]
[421900267,1778312523000,-1500.0,0.00041957,120]
[421900274,1778312523000,-1500.0,0.00041957,120]